fUSD/lending_fUSD_20260307
["ID","MTS","AMOUNT","RATE_DAILY","PERIOD"]
[407924751,1772915431809,-500.0,0.0001569,2]
[407924752,1772915431819,-332.07674014,0.0001569,2]
[407924753,1772915431829,-167.45932144,0.0001569,2]
[407924754,1772915431839,-500.0,0.0001569,2]
[407924755,1772915431848,-505.04337236,0.0001569,2]
[407924756,1772915431857,-169.09871505,0.0001569,2]
[407924757,1772915431867,-500.0,0.0001569,2]
[407924758,1772915431887,-500.0,0.0001569,2]
[407924759,1772915431904,-500.0,0.0001569,2]
[407924760,1772915431915,-500.0,0.0001569,2]
[407924761,1772915431926,-500.0,0.0001569,2]
[407924762,1772915431936,-500.0,0.0001569,2]
[407924763,1772915431947,-500.0,0.0001569,2]
[407924764,1772915431958,-500.0,0.0001569,2]
[407924765,1772915431968,-500.0,0.0001569,2]
[407924766,1772915431979,-500.0,0.0001569,2]
[407924767,1772915431989,-500.0,0.0001569,2]
[407924768,1772915431999,-500.0,0.0001569,2]
[407924769,1772915432010,-500.0,0.0001569,2]
[407924770,1772915432019,-500.0,0.0001569,2]
[407924771,1772915432029,-500.0,0.0001569,2]
[407924772,1772915432039,-500.0,0.0001569,2]
[407924773,1772915432048,-500.0,0.0001569,2]
[407924774,1772915432058,-500.0,0.0001569,2]
[407924775,1772915432068,-500.0,0.0001569,2]
[407924776,1772915432078,-500.0,0.0001569,2]
[407924777,1772915432087,-500.0,0.0001569,2]
[407924778,1772915432097,-500.0,0.0001569,2]
[407924779,1772915432107,-500.0,0.0001569,2]
[407924780,1772915432117,-500.0,0.0001569,2]
[407924781,1772915432126,-500.0,0.0001569,2]
[407924782,1772915432136,-500.0,0.0001569,2]
[407924783,1772915432146,-500.0,0.0001569,2]
[407924784,1772915432156,-500.0,0.0001569,2]
[407924785,1772915432165,-500.0,0.0001569,2]
[407924786,1772915432175,-500.0,0.0001569,2]
[407924787,1772915432188,-500.0,0.0001569,2]
[407924788,1772915432208,-500.0,0.0001569,2]
[407924789,1772915432227,-537.58418827,0.0001569,2]
[407924790,1772915432240,-500.0,0.0001569,2]
[407924791,1772915432252,-500.0,0.0001569,2]
[407924792,1772915432261,-500.0,0.0001569,2]
[407924793,1772915432271,-500.0,0.0001569,2]
[407924794,1772915432282,-500.0,0.0001569,2]
[407924795,1772915432294,-500.0,0.0001569,2]
[407924796,1772915432307,-500.0,0.0001569,2]
[407924797,1772915432317,-500.0,0.0001569,2]
[407924798,1772915432337,-500.0,0.0001569,2]
[407924799,1772915432349,-500.0,0.0001569,2]
[407924800,1772915432359,-500.0,0.0001569,2]
[407924801,1772915432369,-500.0,0.0001569,2]
[407924802,1772915432379,-500.0,0.0001569,2]
[407924803,1772915432399,-500.0,0.0001569,2]
[407924804,1772915432419,-500.0,0.0001569,2]
[407924805,1772915432433,-500.0,0.0001569,2]
[407924806,1772915432446,-500.0,0.0001569,2]
[407924807,1772915432457,-500.0,0.0001569,2]
[407924808,1772915432468,-500.0,0.0001569,2]
[407924809,1772915432479,-500.0,0.0001569,2]
[407924810,1772915432491,-550.0,0.0001569,2]
[407924811,1772915432502,-500.0,0.0001569,2]
[407924812,1772915432514,-500.0,0.0001569,2]
[407924813,1772915432526,-500.0,0.0001569,2]
[407924814,1772915432537,-500.0,0.0001569,2]
[407924815,1772915432550,-500.0,0.0001569,2]
[407924816,1772915432562,-350.0,0.0001569,2]
[407924817,1772915432572,-500.0,0.0001569,2]
[407924818,1772915432583,-500.0,0.0001569,2]
[407924819,1772915432595,-500.0,0.0001569,2]
[407924820,1772915432607,-500.0,0.0001569,2]
[407924821,1772915432617,-500.0,0.0001569,2]
[407924822,1772915432627,-500.0,0.0001569,2]
[407924823,1772915432642,-500.0,0.0001569,2]
[407924824,1772915432652,-500.0,0.0001569,2]
[407924825,1772915432663,-338.30961552,0.0001569,2]
[407924826,1772915432673,-500.0,0.0001569,2]
[407924827,1772915432684,-500.0,0.0001569,2]
[407924828,1772915432695,-500.0,0.0001569,2]
[407924829,1772915432708,-500.0,0.0001569,2]
[407924830,1772915432717,-500.0,0.0001569,2]
[407924831,1772915432731,-500.0,0.0001569,2]
[407924832,1772915432744,-500.0,0.0001569,2]
[407924833,1772915432755,-500.0,0.0001569,2]
[407924834,1772915432767,-500.0,0.0001569,2]
[407924835,1772915432777,-500.0,0.0001569,2]
[407924836,1772915432788,-500.0,0.0001569,2]
[407924837,1772915432798,-500.0,0.0001569,2]
[407924838,1772915432810,-500.0,0.0001569,2]
[407924839,1772915432821,-500.0,0.0001569,2]
[407924840,1772915432831,-500.0,0.0001569,2]
[407924841,1772915432844,-183.83096155,0.0001569,2]
[407924842,1772915432855,-500.0,0.0001569,2]
[407924843,1772915432865,-513.10166881,0.0001569,2]
[407924844,1772915432876,-500.0,0.0001569,2]
[407924845,1772915432892,-500.0,0.0001569,2]
[407924846,1772915432904,-500.0,0.0001569,2]
[407924847,1772915432915,-500.0,0.0001569,2]
[407924848,1772915432925,-500.0,0.0001569,2]
[407924849,1772915432937,-500.0,0.0001569,2]
[407924850,1772915432949,-500.0,0.0001569,2]
[407924851,1772915432963,-500.0,0.0001569,2]
[407924852,1772915432974,-500.0,0.0001569,2]
[407924853,1772915432983,-500.0,0.0001569,2]
[407924854,1772915432994,-500.0,0.0001569,2]
[407924855,1772915433004,-895.73,0.0001569,2]
[407924856,1772915433014,-1188.97864304,0.00015691,2]
[407924857,1772915433055,-50673.01946214,0.00015691,2]
[407924858,1772915433068,-20921.25424646,0.00015691,2]
[407924859,1772915433079,-2170.0,0.00015691,2]
[407924860,1772915433090,-981.47839901,0.00015691,2]
[407924861,1772915433110,-678.45,0.00015691,2]
[407924869,1772915437509,-1389.5563097,0.00015691,2]
[407924870,1772915437521,-1606.43883667,0.00015691,2]
[407924871,1772915437533,-519.57820263,0.00015691,2]
[407924872,1772915437566,-334.615,0.00015691,2]
[407924873,1772915437579,-3999.99999999,0.00015691,2]
[407924874,1772915437674,-713.71647197,0.00015691,2]
[407924875,1772915437685,-542.25031788,0.00015691,2]
[407924876,1772915437696,-20310.0,0.00015691,2]
[407924877,1772915437707,-10043.57037895,0.00015691,2]
[407924887,1772915439651,-3565.18647994,0.00015691,2]
[407924888,1772915439706,-380.30947352,0.00015691,2]
[407924889,1772915439718,-32105.5,0.00015691,2]
[407924890,1772915440015,-869060.2437781,0.00015691,2]
[407924891,1772915440025,-151.0,0.00015781,2]
[407924892,1772915440035,-151.0,0.00015781,2]
[407924893,1772915440044,-151.0,0.00015781,2]
[407924894,1772915440054,-151.0,0.00015781,2]
[407924895,1772915440063,-151.0,0.00015781,2]
[407924896,1772915440072,-151.0,0.00015781,2]
[407924897,1772915440082,-151.0,0.00015781,2]
[407924898,1772915440092,-151.0,0.00015781,2]
[407924899,1772915440101,-151.0,0.00015781,2]
[407924900,1772915440110,-151.0,0.00015781,2]
[407924901,1772915440120,-151.0,0.00015781,2]
[407924902,1772915440130,-500.0,0.00015781,2]
[407924903,1772915440139,-500.0,0.00015781,2]
[407924904,1772915440149,-500.0,0.00015781,2]
[407924905,1772915440158,-500.0,0.00015781,2]
[407924906,1772915440168,-500.0,0.00015781,2]
[407924907,1772915440178,-500.0,0.00015781,2]
[407924908,1772915440187,-500.0,0.00015781,2]
[407924909,1772915440196,-500.0,0.00015781,2]
[407924910,1772915440207,-500.0,0.00015781,2]
[407924911,1772915440216,-200.0,0.00015781,2]
[407924912,1772915440225,-500.0,0.00015781,2]
[407924913,1772915440235,-500.0,0.00015781,2]
[407924914,1772915440244,-500.0,0.00015781,2]
[407924916,1772915440254,-500.0,0.00015781,2]
[407924917,1772915440263,-377.3597684,0.00015781,2]
[407924918,1772915440271,-5000.0,0.00015791,2]
[407924919,1772915440282,-5000.0,0.00015791,2]
[407924920,1772915440291,-250.0,0.00015791,2]
[407924921,1772915440300,-2368.02426002,0.00015791,2]
[407924923,1772915440309,-10991.23120277,0.00015797,2]
[407924924,1772915440318,-500.0,0.000158,5]
[407924925,1772915440328,-1100.0,0.000159,5]
[407924926,1772915440342,-500.0,0.00015964,2]
[407924927,1772915440351,-895.73,0.00015964,2]
[407924928,1772915440360,-152.8,0.00016,3]
[407924929,1772915440375,-214.41219958,0.0001614,2]
[407924930,1772915440392,-8484.41153066,0.0001615,2]
[407924931,1772915440405,-11119.68402042,0.0001615,2]
[407924932,1772915440419,-500.0,0.00016238,2]
[407924933,1772915440433,-895.73,0.00016238,2]
[407924934,1772915440448,-150.0,0.00016288,2]
[407924935,1772915440464,-200.0,0.00016329,2]
[407924936,1772915440477,-604.25635755,0.00016347,2]
[407924937,1772915440489,-420.0,0.00016391,2]
[407924938,1772915440503,-420.0,0.00016391,2]
[407924939,1772915440517,-1680.0,0.00016474,2]
[407924940,1772915440531,-500.0,0.00016508,2]
[407924941,1772915440546,-895.73,0.00016512,2]
[407924942,1772915440561,-8484.41153066,0.00016619,2]
[407924943,1772915440576,-11119.68402042,0.00016619,2]
[407924944,1772915440590,-636.0,0.00016685,2]
[407924945,1772915440604,-510.0,0.00016711,2]
[407924946,1772915440618,-895.73,0.00016786,2]
[407924947,1772915440633,-200.0,0.00016877,2]
[407924948,1772915440648,-32906.2197,0.000169,2]
[407924949,1772915440661,-1000.0,0.000169,2]
[407924950,1772915440674,-9284.33,0.00016922,2]
[407924951,1772915440685,-500.0,0.00016999,2]
[407924952,1772915440698,-500.0,0.00016999,2]
[407924953,1772915440714,-500.0,0.00016999,2]
[407924954,1772915440724,-500.0,0.00016999,2]
[407924955,1772915440735,-500.0,0.00016999,2]
[407924956,1772915440750,-500.0,0.00016999,2]
[407924957,1772915440763,-500.0,0.00016999,2]
[407924958,1772915440774,-503.0,0.00017,2]
[407924959,1772915440785,-604.25635755,0.00017057,2]
[407924960,1772915440805,-895.73,0.0001706,2]
[407924961,1772915440818,-8484.41153066,0.00017087,2]
[407924962,1772915440830,-11119.68402042,0.00017087,2]
[407924963,1772915440842,-895.73,0.00017334,2]
[407924964,1772915440855,-200.0,0.00017425,2]
[407924965,1772915440866,-8484.41153066,0.00017556,2]
[407924966,1772915440879,-11119.68402042,0.00017556,2]
[407924967,1772915440891,-573.2,0.00017567,2]
[407924968,1772915440903,-283.75352511,0.00017567,2]
[407924969,1772915440917,-553.67077404,0.00017567,2]
[407924970,1772915440929,-895.80882377,0.00017608,2]
[407924971,1772915440943,-604.25635755,0.00017768,2]
[407924972,1772915440956,-800.0,0.00017808,2]
[407924973,1772915440969,-866.0,0.00017912,2]
[407924974,1772915440981,-587.0,0.0001794,2]
[407924975,1772915440994,-2000.0,0.00017952,2]
[407924976,1772915441007,-236.967663,0.00017954,2]
[407924977,1772915441020,-200.0,0.00018,4]
[407924978,1772915441034,-500.0,0.00018,2]
[407924979,1772915441046,-500.0,0.00018,2]
[407924980,1772915441059,-1500.0,0.00018001,2]
[407924981,1772915441073,-8484.41153066,0.00018025,2]
[407924982,1772915441087,-11119.68402042,0.00018025,2]
[407924983,1772915441100,-1000.0,0.00018082,7]
[407924984,1772915441112,-1900.0,0.00018082,7]
[407924985,1772915441124,-2100.0,0.00018082,7]
[407924986,1772915441137,-1680.0,0.00018121,2]
[407924987,1772915441150,-1600.0,0.00018184,2]
[407924988,1772915441162,-666.99341544,0.00018429,2]
[407924989,1772915441174,-604.25635755,0.00018479,2]
[407924990,1772915441188,-8484.41153066,0.00018494,2]
[407924991,1772915441203,-11119.68402042,0.00018494,2]
[407924992,1772915441216,-151.0,0.00018529,2]
[407924993,1772915441229,-1428.38747117,0.00018529,2]
[407924994,1772915441242,-209.40437685,0.00018529,2]
[407924995,1772915441255,-250.0,0.00018529,2]
[407924996,1772915441267,-250.0,0.00018529,2]
[407924997,1772915441279,-721.12765535,0.00018529,2]
[407924998,1772915441292,-250.0,0.00018529,2]
[407924999,1772915441303,-250.0,0.00018529,2]
[407925000,1772915441316,-250.0,0.00018529,2]
[407925001,1772915441329,-250.0,0.00018529,2]
[407925002,1772915441346,-250.0,0.00018529,2]
[407925003,1772915441360,-250.0,0.00018529,2]
[407925004,1772915441373,-250.0,0.00018529,2]
[407925005,1772915441385,-250.0,0.00018529,2]
[407925006,1772915441399,-250.0,0.00018529,2]
[407925007,1772915441411,-250.0,0.00018529,2]
[407925008,1772915441424,-250.0,0.00018529,2]
[407925009,1772915441438,-250.0,0.00018529,2]
[407925010,1772915441452,-250.0,0.00018529,2]
[407925011,1772915441465,-500.0,0.00018529,2]
[407925012,1772915441479,-250.0,0.00018529,2]
[407925013,1772915441492,-250.0,0.00018529,2]
[407925014,1772915441504,-250.0,0.00018529,2]
[407925015,1772915441517,-250.0,0.00018529,2]
[407925016,1772915441530,-245.69751528,0.00018529,2]
[407925017,1772915441542,-1000.0,0.00018529,2]
[407925018,1772915441554,-3000.0,0.00018529,2]
[407925019,1772915441567,-1000.0,0.00018529,2]
[407925020,1772915441579,-3000.0,0.00018529,2]
[407925021,1772915441592,-931.42295046,0.00018529,2]
[407925022,1772915441605,-2500.0,0.00018529,2]
[407925023,1772915441619,-2970.91497975,0.00018529,2]
[407925024,1772915441634,-578.20924308,0.00018529,2]
[407925025,1772915441647,-2500.0,0.00018529,2]
[407925026,1772915441661,-500.0,0.00018529,2]
[407925027,1772915441674,-250.0,0.00018529,2]
[407925028,1772915441686,-151.0,0.00018529,2]
[407925029,1772915441699,-250.0,0.00018529,2]
[407925030,1772915441711,-250.0,0.00018529,2]
[407925031,1772915441724,-743.50770149,0.00018529,2]
[407925032,1772915441736,-1000.0,0.00018529,2]
[407925033,1772915441748,-250.0,0.00018529,2]
[407925034,1772915441760,-750.0,0.00018529,2]
[407925035,1772915441772,-250.0,0.00018529,2]
[407925036,1772915441785,-250.0,0.00018529,2]
[407925037,1772915441797,-174.61919141,0.00018529,2]
[407925038,1772915441809,-161.0,0.00018529,2]
[407925039,1772915441821,-693.3919763,0.00018529,2]
[407925040,1772915441833,-262.90206542,0.00018529,2]
[407925041,1772915441846,-209.40437686,0.00018529,2]
[407925042,1772915441858,-500.0,0.00018529,2]
[407925043,1772915441871,-500.0,0.00018529,2]
[407925044,1772915441884,-500.0,0.00018529,2]
[407925045,1772915441897,-500.0,0.00018529,2]
[407925046,1772915441910,-745.65223616,0.00018529,2]
[407925047,1772915441922,-500.0,0.00018529,2]
[407925048,1772915441935,-500.0,0.00018529,2]
[407925049,1772915441948,-500.0,0.00018529,2]
[407925050,1772915441961,-500.0,0.00018529,2]
[407925051,1772915441974,-500.0,0.00018529,2]
[407925052,1772915441987,-500.0,0.00018529,2]
[407925053,1772915442000,-500.0,0.00018529,2]
[407925054,1772915442012,-151.0,0.00018584,2]
[407925055,1772915442025,-719.04747942,0.00018584,2]
[407925056,1772915442038,-745.65223616,0.00018639,2]
[407925057,1772915442051,-166.68,0.00018647,2]
[407925058,1772915442064,-773.2413689,0.00018694,2]
[407925059,1772915442077,-801.85129955,0.00018749,2]
[407925060,1772915442089,-831.51979763,0.00018804,2]
[407925061,1772915442103,-862.28603014,0.00018859,2]
[407925062,1772915442115,-894.19061326,0.00018914,2]
[407925063,1772915442128,-8484.41153066,0.00018962,2]
[407925064,1772915442140,-11119.68402042,0.00018962,2]
[407925065,1772915442153,-927.27566595,0.00018969,2]
[407925066,1772915442166,-5000.0,0.00019,2]
[407925067,1772915442178,-5000.0,0.00019,2]
[407925068,1772915442190,-490.20403515,0.00019,2]
[407925069,1772915442204,-1537.65198838,0.00019014,2]
[407925070,1772915442216,-961.58486559,0.00019024,2]
[407925071,1772915442230,-161.0,0.0001904,2]
[407925072,1772915442243,-1537.65198838,0.00019068,2]
[407925073,1772915442255,-500.0,0.00019077,2]
[407925075,1772915442267,-997.16350561,0.00019079,2]
[407925077,1772915442281,-1537.65198838,0.00019151,2]
[407925079,1772915442294,-151.0,0.00019161,2]
[407925080,1772915442307,-666.99341543,0.00019165,2]
[407925081,1772915442319,-1000.0,0.00019178,7]
[407925082,1772915442333,-1900.0,0.00019178,7]
[407925083,1772915442347,-2100.0,0.00019178,7]
[407925084,1772915442361,-172.78723296,0.00019178,7]
[407925087,1772915442415,-3700.54,0.00019178,30]
[407925088,1772915442427,-604.25635755,0.00019189,2]
[407925089,1772915442440,-1700.0,0.000192,7]
[407925090,1772915442452,-1537.65198838,0.00019233,2]
[407925091,1772915442464,-503.0,0.0001925,4]
[407925092,1772915442477,-246.0,0.00019292,2]
[407925094,1772915442490,-2300.0,0.000193,7]
[407925096,1772915442503,-1537.65198838,0.00019315,2]
[407925097,1772915442515,-255.22,0.00019318,14]
[407925098,1772915442530,-160.0,0.0001936,2]
[407925100,1772915442542,-855.0,0.0001936,2]
[407925103,1772915442556,-459.2,0.00019361,2]
[407925104,1772915442568,-1537.65198838,0.0001937,2]
[407925105,1772915442582,-168.0,0.00019386,2]
[407925106,1772915442594,-2800.0,0.000194,7]
[407925107,1772915442610,-150.0,0.00019403,2]
[407925108,1772915442622,-244.946105,0.00019405,2]
[407925109,1772915442634,-459.2,0.00019419,2]
[407925110,1772915442646,-8484.41153066,0.00019431,2]
[407925111,1772915442657,-11119.68402042,0.00019431,2]
[407925112,1772915442669,-1537.65198838,0.00019452,2]
[407925113,1772915442680,-459.2,0.00019477,2]
[407925114,1772915442692,-500.0,0.000195,7]
[407925115,1772915442704,-1537.65198838,0.00019534,2]
[407925116,1772915442716,-459.2,0.00019535,2]
[407925117,1772915442727,-168.0,0.0001957,2]
[407925118,1772915442739,-459.2,0.00019593,2]
[407925119,1772915442750,-1105.06783561,0.000196,2]
[407925120,1772915442762,-1116.28285112,0.000196,2]
[407925121,1772915442773,-890.34404987,0.000196,2]
[407925122,1772915442784,-1801.50099989,0.000196,2]
[407925123,1772915442796,-1977.67132423,0.000196,2]
[407925124,1772915442807,-500.0,0.000196,7]
[407925125,1772915442819,-1537.65198838,0.00019616,2]
[407925126,1772915442830,-500.0,0.00019625,2]
[407925127,1772915442841,-459.2,0.00019651,2]
[407925128,1772915442852,-1000.0,0.00019681,2]
[407925129,1772915442863,-1537.65198838,0.00019699,2]
[407925130,1772915442875,-150.0,0.00019699,2]
[407925131,1772915442886,-500.0,0.00019699,2]
[407925132,1772915442897,-150.0,0.00019699,2]
[407925133,1772915442908,-150.0,0.00019699,2]
[407925134,1772915442919,-500.0,0.00019699,2]
[407925135,1772915442930,-500.0,0.000197,7]
[407925136,1772915442941,-459.2,0.0001971,2]
[407925137,1772915442952,-150.0,0.00019751,2]
[407925138,1772915442963,-1537.65198838,0.00019753,2]
[407925139,1772915442975,-150.0,0.00019754,2]
[407925140,1772915442986,-563.0,0.00019754,2]
[407925141,1772915442997,-500.0,0.00019754,2]
[407925142,1772915443008,-168.0,0.00019763,2]
[407925144,1772915443019,-459.2,0.00019768,2]
[407925146,1772915443031,-388.22,0.0001979,2]
[407925148,1772915443043,-4592.8277,0.000198,2]
[407925149,1772915443054,-500.0,0.000198,7]
[407925150,1772915443066,-3544.96768875,0.000198,2]
[407925152,1772915443077,-156.1,0.00019808,2]
[407925153,1772915443088,-500.0,0.00019809,2]
[407925154,1772915443100,-20488.33629454,0.0001981,2]
[407925155,1772915443112,-3544.9676887,0.0001982,2]
[407925156,1772915443123,-459.2,0.00019826,2]
[407925157,1772915443136,-1537.65198838,0.00019836,2]
[407925158,1772915443147,-200.0,0.0001984,2]
[407925159,1772915443159,-3544.9676887,0.0001984,2]
[407925160,1772915443171,-927.4919,0.00019848,2]
[407925161,1772915443182,-5000.0,0.00019848,2]
[407925162,1772915443195,-3544.9676887,0.0001986,2]
[407925163,1772915443207,-250.0,0.00019863,2]
[407925164,1772915443219,-500.0,0.00019872,2]
[407925165,1772915443232,-500.0,0.00019872,2]
[407925166,1772915443244,-500.0,0.00019872,2]
[407925167,1772915443257,-500.0,0.00019872,2]
[407925168,1772915443268,-210.6126522,0.00019872,2]
[407925169,1772915443280,-500.0,0.00019872,2]
[407925170,1772915443292,-3544.9676887,0.0001988,2]
[407925171,1772915443304,-5800.0,0.00019883,2]
[407925172,1772915443833,-459.2,0.00019884,2]
[407925173,1772915443877,-5800.0,0.00019892,2]
[407925174,1772915443905,-500.0,0.00019899,2]
[407925175,1772915443922,-500.0,0.00019899,2]
[407925176,1772915443932,-10000.0,0.000199,2]
[407925177,1772915443942,-604.25635755,0.000199,2]
[407925178,1772915443951,-5800.0,0.000199,2]
[407925179,1772915443962,-666.99341543,0.000199,2]
[407925180,1772915443972,-1100.0,0.000199,7]
[407925181,1772915443983,-8484.41153066,0.000199,2]
[407925182,1772915443992,-11119.68402042,0.000199,2]
[407925183,1772915444002,-5700.95528509,0.000199,2]
[407925184,1772915444011,-3544.9676887,0.000199,2]
[407925185,1772915444020,-9714.98652624,0.000199,2]
[407925186,1772915444030,-3335.0,0.000199,2]
[407925187,1772915444041,-2675.0,0.000199,2]
[407925188,1772915444050,-168.0,0.00019911,2]
[407925189,1772915444060,-544.0,0.00019918,2]
[407925190,1772915444069,-459.2,0.00019942,2]
[407925191,1772915444078,-151.0,0.00019945,2]
[407925192,1772915444088,-500.0,0.00019947,2]
[407925193,1772915444097,-500.0,0.00019947,2]
[407925194,1772915444106,-500.0,0.00019947,2]
[407925195,1772915444116,-500.0,0.00019947,2]
[407925196,1772915444126,-500.0,0.00019947,2]
[407925197,1772915444135,-500.0,0.00019947,2]
[407925198,1772915444145,-500.0,0.00019947,2]
[407925199,1772915444155,-500.0,0.00019947,2]
[407925200,1772915444164,-500.0,0.00019947,2]
[407925201,1772915444174,-500.0,0.00019947,2]
[407925202,1772915444184,-175107.67661298,0.00019948,2]
[407925203,1772915444199,-394795.64589962,0.00019948,2]
[407925204,1772915444209,-4956.7590881,0.00019948,2]
[407925205,1772915444218,-229724.2493448,0.00019948,2]
[407925206,1772915444228,-3170.8387295,0.00019949,2]
[407925207,1772915444238,-400.0,0.0001997,2]
[407925208,1772915444249,-500.0,0.00019973,2]
[407925209,1772915444259,-214.41219958,0.0001999,2]
[407925210,1772915444269,-214.41219958,0.0001999,2]
[407925211,1772915444278,-151.0,0.00019997,2]
[407925212,1772915444288,-300.0,0.00019999,2]
[407925213,1772915444298,-155.0,0.00019999,2]
[407925214,1772915444308,-500.0,0.00019999,2]
[407925215,1772915444318,-500.0,0.00019999,2]
[407925216,1772915444328,-500.0,0.00019999,2]
[407925217,1772915444343,-500.0,0.00019999,2]
[407925218,1772915444353,-500.0,0.00019999,2]
[407925219,1772915444363,-500.0,0.00019999,2]
[407925220,1772915444374,-500.0,0.00019999,2]
[407925221,1772915444384,-500.0,0.00019999,2]
[407925222,1772915444393,-500.0,0.00019999,2]
[407925223,1772915444403,-500.0,0.00019999,2]
[407925224,1772915444413,-500.0,0.00019999,2]
[407925225,1772915444423,-500.0,0.00019999,2]
[407925226,1772915444433,-255.96292911,0.00019999,2]
[407925227,1772915444443,-827628.38285033,0.0002,2]
[407925228,1772915444452,-1475.05214868,0.0002,5]
[407925229,1772915444463,-239252.56799858,0.0002,2]
[407925230,1772915444694,-5727.5199954,0.00015681,2]
[407925231,1772915444704,-629.11135272,0.0002,2]
[407925232,1772915444723,-290.0,0.0002,2]
[407925233,1772915445368,-401.64377145,0.00016284,2]
[407925234,1772915445529,-463.35377226,0.00016284,2]
[407925235,1772915445585,-4862.52245163,0.00016284,2]
[407925236,1772915445595,-4945.64401708,0.0002,2]
[407925237,1772915445642,-1983.79291905,0.0002,2]
[407925239,1772915445653,-1138.00561177,0.0002,2]
[407925250,1772915850557,1992.315761,0.00013,30]
[407925252,1772916397132,-197.46993158,0.00013,30]
[407925255,1772916631541,-697.8179685,0.00013,30]
[407925256,1772916631595,-4923.48932813,0.00013,30]
[407925257,1772916631606,-1200.0,0.00013181,2]
[407925258,1772916631616,-300.0,0.00013182,2]
[407925259,1772916631625,-300.0,0.00013182,2]
[407925260,1772916631634,-300.0,0.00013182,2]
[407925261,1772916631648,-5000.0,0.00013183,2]
[407925262,1772916631657,-193.0,0.00013183,2]
[407925263,1772916631667,-200.0,0.00013365,2]
[407925264,1772916631676,-5000.0,0.00013722,2]
[407925265,1772916631687,-150.0,0.00014299,2]
[407925266,1772916631696,-5000.0,0.000143,2]
[407925267,1772916631706,-193.0,0.000143,2]
[407925269,1772916631718,-600.0,0.000143,2]
[407925271,1772916631727,-500.0,0.000143,2]
[407925273,1772916631737,-289.41620819,0.000143,2]
[407925275,1772916631746,-5000.0,0.000143,2]
[407925276,1772916631755,-250.0,0.000143,2]
[407925278,1772916631765,-300.0,0.00014453,2]
[407925280,1772916631774,-168.02,0.00014487,2]
[407925282,1772916631784,-1680.0,0.00014499,2]
[407925284,1772916631793,-255.0,0.00015429,2]
[407925286,1772916631802,-140938.0,0.00015571,2]
[407925288,1772916631811,-151.0,0.00015572,2]
[407925290,1772916631822,-500.0,0.00015572,2]
[407925291,1772916631831,-151.0,0.00015572,2]
[407925292,1772916631841,-500.0,0.00015572,2]
[407925293,1772916631851,-151.0,0.00015572,2]
[407925294,1772916631860,-500.0,0.00015572,2]
[407925295,1772916631870,-500.0,0.00015572,2]
[407925296,1772916631880,-151.0,0.00015572,2]
[407925297,1772916631889,-500.0,0.00015572,2]
[407925298,1772916631899,-151.0,0.00015572,2]
[407925299,1772916631908,-151.0,0.00015572,2]
[407925300,1772916631917,-151.0,0.00015572,2]
[407925301,1772916631927,-200.0,0.00015572,2]
[407925302,1772916631937,-151.0,0.00015572,2]
[407925303,1772916631946,-151.0,0.00015572,2]
[407925304,1772916631955,-151.0,0.00015572,2]
[407925305,1772916631965,-151.0,0.00015572,2]
[407925306,1772916631974,-500.0,0.00015572,2]
[407925307,1772916631984,-500.0,0.00015572,2]